[Event "Titled Tuesday Blitz February 15 Early 2022"]
[White "Moskvin, Anatoly"]
[Black "Wartiovaara, Oliver"]
[WhiteFideId "24199990"]
[BlackFideId "513024"]
[WhiteElo "2079"]
[BlackElo "1971"]
[Result "1-0"]
[Round "10"]
[TimeControl "180+1"]
[Date "2022.02.15"]
[WhiteClock "0:00:12"]
[BlackClock "0:00:08"]

1. e4 {[%clk 0:03:00]}  c5 {[%clk 0:01:57]} 2. Nf3 {[%clk 0:02:59]}  d6 {[%clk 0:01:56]} 3. d4 {[%clk 0:02:59]}  cxd4 {[%clk 0:01:57]} 4. Nxd4 {[%clk 0:03:00]}  Nf6 {[%clk 0:01:57]} 5. f3 {[%clk 0:03:01]}  e5 {[%clk 0:01:57]} 6. Bb5+ {[%clk 0:03:00]}  Bd7 {[%clk 0:01:47]} 7. Bxd7+ {[%clk 0:03:00]}  Qxd7 {[%clk 0:01:48]} 8. Nf5 {[%clk 0:03:00]}  d5 {[%clk 0:01:48]} 9. Bg5 {[%clk 0:03:01]}  dxe4 {[%clk 0:01:42]} 10. Bxf6 {[%clk 0:03:01]}  gxf6 {[%clk 0:01:34]} 11. Qxd7+ {[%clk 0:02:56]}  Kxd7 {[%clk 0:01:34]} 12. fxe4 {[%clk 0:02:57]}  Nc6 {[%clk 0:01:32]} 13. c3 {[%clk 0:02:54]}  Rg8 {[%clk 0:01:28]} 14. g3 {[%clk 0:02:48]}  Ke6 {[%clk 0:01:15]} 15. Nd2 {[%clk 0:02:45]}  Rd8 {[%clk 0:01:14]} 16. Ke2 {[%clk 0:02:44]}  Ne7 {[%clk 0:01:07]} 17. Rhf1 {[%clk 0:02:39]}  Nxf5 {[%clk 0:01:05]} 18. Rxf5 {[%clk 0:02:39]}  Bh6 {[%clk 0:01:05]} 19. Nb3 {[%clk 0:02:04]}  b6 {[%clk 0:01:05]} 20. Rh5 {[%clk 0:01:54]}  Rg6 {[%clk 0:01:00]} 21. Rd1 {[%clk 0:01:48]}  Rxd1 {[%clk 0:00:59]} 22. Kxd1 {[%clk 0:01:49]}  Ke7 {[%clk 0:00:49]} 23. Ke2 {[%clk 0:01:48]}  Kf8 {[%clk 0:00:49]} 24. Kd3 {[%clk 0:01:48]}  Kg7 {[%clk 0:00:49]} 25. Kc4 {[%clk 0:01:48]}  Rg4 {[%clk 0:00:45]} 26. Kd5 {[%clk 0:01:48]}  Bg5 {[%clk 0:00:42]} 27. a4 {[%clk 0:01:33]}  Kg6 {[%clk 0:00:41]} 28. Rh3 {[%clk 0:01:33]}  h6 {[%clk 0:00:29]} 29. c4 {[%clk 0:01:26]}  f5 {[%clk 0:00:29]} 30. exf5+ {[%clk 0:01:16]}  Kxf5 {[%clk 0:00:30]} 31. a5 {[%clk 0:01:10]}  e4 {[%clk 0:00:22]} 32. Nd4+ {[%clk 0:01:07]}  Kg6 {[%clk 0:00:21]} 33. axb6 {[%clk 0:00:54]}  axb6 {[%clk 0:00:22]} 34. b4 {[%clk 0:00:53]}  e3 {[%clk 0:00:21]} 35. Ne2 {[%clk 0:00:52]}  Bf6 {[%clk 0:00:19]} 36. Nf4+ {[%clk 0:00:36]}  Kh7 {[%clk 0:00:19]} 37. c5 {[%clk 0:00:28]}  bxc5 {[%clk 0:00:20]} 38. bxc5 {[%clk 0:00:28]}  Bc3 {[%clk 0:00:19]} 39. c6 {[%clk 0:00:22]}  Ba5 {[%clk 0:00:09]} 40. Rh4 {[%clk 0:00:07]}  Rxh4 {[%clk 0:00:08]} 41. gxh4 {[%clk 0:00:08]}  Kg7 {[%clk 0:00:07]} 42. Ke4 {[%clk 0:00:07]}  Kf6 {[%clk 0:00:02]} 43. Nd5+ {[%clk 0:00:06]}  Ke6 {[%clk 0:00:02]} 44. Nxe3 {[%clk 0:00:07]}  Kd6 {[%clk 0:00:02]} 45. Nc4+ {[%clk 0:00:08]}  Kxc6 {[%clk 0:00:01]} 46. Nxa5+ {[%clk 0:00:08]}  Kd6 {[%clk 0:00:02]} 47. Kf5 {[%clk 0:00:09]}  Ke7 {[%clk 0:00:02]} 48. Nc4 {[%clk 0:00:09]}  Kf8 {[%clk 0:00:01]} 49. Kf6 {[%clk 0:00:10]}  Kg8 {[%clk 0:00:02]} 50. Ne5 {[%clk 0:00:09]}  Kf8 {[%clk 0:00:02]} 51. Nxf7 {[%clk 0:00:10]}  h5 {[%clk 0:00:02]} 52. Kg6 {[%clk 0:00:09]}  Kg8 {[%clk 0:00:03]} 53. Ng5 {[%clk 0:00:09]}  Kh8 {[%clk 0:00:03]} 54. Kxh5 {[%clk 0:00:10]}  Kg8 {[%clk 0:00:04]} 55. Kg6 {[%clk 0:00:10]}  Kh8 {[%clk 0:00:05]} 56. h5 {[%clk 0:00:11]}  Kg8 {[%clk 0:00:06]} 57. h6 {[%clk 0:00:11]}  Kh8 {[%clk 0:00:07]} 58. Nf7+ {[%clk 0:00:12]}  Kg8 {[%clk 0:00:08]} 59. h7+ {[%clk 0:00:12]} 1-0


[Site "https://www.chess.com"]

[Event "Titled Tuesday Blitz February 15 Early 2022"]
[White "Musovic, Armin"]
[Black "Yuan, Qingyu"]
[WhiteFideId "939935"]
[BlackFideId "8609772"]
[WhiteElo "2250"]
[BlackElo "2359"]
[Result "0-1"]
[Round "10"]
[TimeControl "180+1"]
[Date "2022.02.15"]
[WhiteClock "0:00:35"]
[BlackClock "0:01:30"]

1. e4 {[%clk 0:03:00]}  c6 {[%clk 0:02:57]} 2. d4 {[%clk 0:02:56]}  d5 {[%clk 0:02:57]} 3. exd5 {[%clk 0:02:57]}  cxd5 {[%clk 0:02:57]} 4. c4 {[%clk 0:02:57]}  Nf6 {[%clk 0:02:58]} 5. Nc3 {[%clk 0:02:58]}  Nc6 {[%clk 0:02:58]} 6. Nf3 {[%clk 0:02:57]}  a6 {[%clk 0:02:58]} 7. h3 {[%clk 0:02:56]}  g6 {[%clk 0:02:52]} 8. cxd5 {[%clk 0:02:52]}  Nxd5 {[%clk 0:02:49]} 9. Bc4 {[%clk 0:02:52]}  Be6 {[%clk 0:02:48]} 10. Bb3 {[%clk 0:02:49]}  Na5 {[%clk 0:02:45]} 11. Bc2 {[%clk 0:02:37]}  Nb4 {[%clk 0:02:42]} 12. Bb1 {[%clk 0:02:34]}  Bg7 {[%clk 0:02:29]} 13. O-O {[%clk 0:02:32]}  O-O {[%clk 0:02:29]} 14. Re1 {[%clk 0:02:30]}  Rc8 {[%clk 0:02:26]} 15. Bg5 {[%clk 0:02:21]}  Re8 {[%clk 0:02:23]} 16. Ne4 {[%clk 0:02:06]}  Nc4 {[%clk 0:02:09]} 17. Nc5 {[%clk 0:01:56]}  Rxc5 {[%clk 0:02:09]} 18. dxc5 {[%clk 0:01:51]}  Qxd1 {[%clk 0:02:08]} 19. Rxd1 {[%clk 0:01:51]}  Bxb2 {[%clk 0:02:08]} 20. Be4 {[%clk 0:01:33]}  Bxa1 {[%clk 0:02:06]} 21. Rxa1 {[%clk 0:01:34]}  f6 {[%clk 0:01:47]} 22. Bf4 {[%clk 0:01:34]}  Bd5 {[%clk 0:01:44]} 23. Re1 {[%clk 0:01:30]}  Kf7 {[%clk 0:01:43]} 24. Nd4 {[%clk 0:01:13]}  e5 {[%clk 0:01:37]} 25. a3 {[%clk 0:00:53]}  exd4 {[%clk 0:01:32]} 26. axb4 {[%clk 0:00:36]}  Rxe4 {[%clk 0:01:31]} 27. Rxe4 {[%clk 0:00:35]}  Bxe4 {[%clk 0:01:32]} 28. Bc7 {[%clk 0:00:35]}  d3 {[%clk 0:01:30]} 0-1


[Site "https://www.chess.com"]

[Event "Titled Tuesday Blitz February 15 Early 2022"]
[White "Narayanan.S.L"]
[Black "Lodici, Lorenzo"]
[WhiteFideId "5058422"]
[BlackFideId "884189"]
[WhiteElo "2494"]
[BlackElo "2265"]
[Result "1-0"]
[Round "10"]
[TimeControl "180+1"]
[Date "2022.02.15"]
[WhiteClock "0:00:10"]
[BlackClock "0:00:07"]

1. Nf3 {[%clk 0:03:00]}  d5 {[%clk 0:02:59]} 2. g3 {[%clk 0:03:01]}  Bg4 {[%clk 0:02:58]} 3. Bg2 {[%clk 0:03:01]}  Nd7 {[%clk 0:02:58]} 4. h3 {[%clk 0:03:01]}  Bxf3 {[%clk 0:02:56]} 5. Bxf3 {[%clk 0:03:01]}  c6 {[%clk 0:02:57]} 6. d3 {[%clk 0:03:01]}  Ngf6 {[%clk 0:02:56]} 7. e4 {[%clk 0:03:01]}  dxe4 {[%clk 0:02:56]} 8. dxe4 {[%clk 0:03:01]}  e5 {[%clk 0:02:57]} 9. O-O {[%clk 0:03:01]}  Bc5 {[%clk 0:02:57]} 10. a4 {[%clk 0:03:00]}  a5 {[%clk 0:02:57]} 11. Nd2 {[%clk 0:03:00]}  Nf8 {[%clk 0:02:52]} 12. Nc4 {[%clk 0:02:58]}  Qc7 {[%clk 0:02:49]} 13. Be3 {[%clk 0:02:42]}  Ne6 {[%clk 0:02:33]} 14. Bxc5 {[%clk 0:02:04]}  Nxc5 {[%clk 0:02:34]} 15. Nd6+ {[%clk 0:02:05]}  Kf8 {[%clk 0:02:34]} 16. Nc4 {[%clk 0:02:05]}  Ke7 {[%clk 0:02:33]} 17. Qc1 {[%clk 0:02:04]}  Rhe8 {[%clk 0:02:29]} 18. Qe3 {[%clk 0:01:55]}  b6 {[%clk 0:02:24]} 19. Rfd1 {[%clk 0:01:53]}  Kf8 {[%clk 0:02:21]} 20. b3 {[%clk 0:01:50]}  h6 {[%clk 0:02:10]} 21. h4 {[%clk 0:01:49]}  Re7 {[%clk 0:02:02]} 22. Kg2 {[%clk 0:01:49]}  Rd7 {[%clk 0:02:02]} 23. Rxd7 {[%clk 0:01:47]}  Nfxd7 {[%clk 0:02:03]} 24. Rd1 {[%clk 0:01:47]}  Nf6 {[%clk 0:02:01]} 25. g4 {[%clk 0:01:43]}  Ke7 {[%clk 0:01:57]} 26. g5 {[%clk 0:01:41]}  hxg5 {[%clk 0:01:58]} 27. Qxg5 {[%clk 0:01:41]}  Kf8 {[%clk 0:01:51]} 28. Qxe5 {[%clk 0:01:39]}  Qxe5 {[%clk 0:01:48]} 29. Nxe5 {[%clk 0:01:40]}  Ncxe4 {[%clk 0:01:43]} 30. Nxc6 {[%clk 0:01:39]}  Rc8 {[%clk 0:01:37]} 31. Nd4 {[%clk 0:01:38]}  Nc3 {[%clk 0:01:32]} 32. Rd3 {[%clk 0:01:35]}  Nfd5 {[%clk 0:01:27]} 33. Kg3 {[%clk 0:01:34]}  Nb4 {[%clk 0:01:25]} 34. Rd2 {[%clk 0:01:30]}  Rc5 {[%clk 0:01:18]} 35. h5 {[%clk 0:01:20]}  Ke7 {[%clk 0:01:13]} 36. Kf4 {[%clk 0:01:12]}  Kf6 {[%clk 0:01:13]} 37. Bg2 {[%clk 0:00:56]}  Rxh5 {[%clk 0:01:09]} 38. Nc6 {[%clk 0:00:55]}  Rf5+ {[%clk 0:01:01]} 39. Kg3 {[%clk 0:00:53]}  Rg5+ {[%clk 0:00:57]} 40. Kh2 {[%clk 0:00:51]}  Nxc6 {[%clk 0:00:50]} 41. Rd6+ {[%clk 0:00:51]}  Ke7 {[%clk 0:00:44]} 42. Rxc6 {[%clk 0:00:51]}  Ne2 {[%clk 0:00:27]} 43. Bf1 {[%clk 0:00:33]}  Nd4 {[%clk 0:00:23]} 44. Rxb6 {[%clk 0:00:32]}  Nxc2 {[%clk 0:00:23]} 45. Rb7+ {[%clk 0:00:31]}  Kf6 {[%clk 0:00:15]} 46. Bc4 {[%clk 0:00:32]}  Ke5 {[%clk 0:00:14]} 47. Rxf7 {[%clk 0:00:32]}  Kd4 {[%clk 0:00:14]} 48. f4 {[%clk 0:00:30]}  Rg6 {[%clk 0:00:13]} 49. Rd7+ {[%clk 0:00:23]}  Kc3 {[%clk 0:00:11]} 50. Rd3+ {[%clk 0:00:20]}  Kb4 {[%clk 0:00:07]} 51. Rd5 {[%clk 0:00:20]}  Na3 {[%clk 0:00:06]} 52. Bd3 {[%clk 0:00:11]}  Rf6 {[%clk 0:00:05]} 53. Kg3 {[%clk 0:00:10]}  Kc3 {[%clk 0:00:03]} 54. Be4 {[%clk 0:00:09]}  Kxb3 {[%clk 0:00:02]} 55. Rxa5 {[%clk 0:00:09]}  Kb4 {[%clk 0:00:02]} 56. Ra8 {[%clk 0:00:09]}  Nc4 {[%clk 0:00:02]} 57. Bd5 {[%clk 0:00:08]}  Na5 {[%clk 0:00:02]} 58. Kg4 {[%clk 0:00:07]}  Rd6 {[%clk 0:00:02]} 59. Be4 {[%clk 0:00:07]}  Nc4 {[%clk 0:00:03]} 60. Ra7 {[%clk 0:00:07]}  g6 {[%clk 0:00:02]} 61. Rg7 {[%clk 0:00:06]}  Na5 {[%clk 0:00:02]} 62. Bxg6 {[%clk 0:00:06]}  Kxa4 {[%clk 0:00:02]} 63. f5 {[%clk 0:00:07]}  Nc4 {[%clk 0:00:02]} 64. Kg5 {[%clk 0:00:07]}  Ne5 {[%clk 0:00:02]} 65. Re7 {[%clk 0:00:07]}  Nc6 {[%clk 0:00:03]} 66. Be8 {[%clk 0:00:06]}  Kb4 {[%clk 0:00:03]} 67. Bxc6 {[%clk 0:00:07]}  Rxc6 {[%clk 0:00:04]} 68. f6 {[%clk 0:00:07]}  Rc1 {[%clk 0:00:04]} 69. f7 {[%clk 0:00:08]}  Rg1+ {[%clk 0:00:05]} 70. Kf6 {[%clk 0:00:08]}  Rf1+ {[%clk 0:00:06]} 71. Kg7 {[%clk 0:00:09]}  Rg1+ {[%clk 0:00:06]} 72. Kf8 {[%clk 0:00:09]}  Rf1 {[%clk 0:00:07]} 73. Ke8 {[%clk 0:00:10]}  Kc5 {[%clk 0:00:07]} 74. f8=Q {[%clk 0:00:10]} 1-0


[Site "https://www.chess.com"]

[Event "Titled Tuesday Blitz February 15 Early 2022"]
[White "Navara, David"]
[Black "Samadov, Read"]
[WhiteFideId "309095"]
[BlackFideId "13417444"]
[WhiteElo "2686"]
[BlackElo "2084"]
[Result "0-1"]
[Round "10"]
[TimeControl "180+1"]
[Date "2022.02.15"]
[WhiteClock "0:00:45"]
[BlackClock "0:00:42"]

1. d4 {[%clk 0:03:00]}  Nf6 {[%clk 0:02:59]} 2. c4 {[%clk 0:03:01]}  e6 {[%clk 0:03:00]} 3. Nc3 {[%clk 0:03:01]}  Bb4 {[%clk 0:02:59]} 4. e3 {[%clk 0:03:02]}  O-O {[%clk 0:03:00]} 5. Bd3 {[%clk 0:03:02]}  d5 {[%clk 0:03:00]} 6. cxd5 {[%clk 0:03:03]}  exd5 {[%clk 0:03:00]} 7. Ne2 {[%clk 0:03:04]}  b6 {[%clk 0:02:55]} 8. O-O {[%clk 0:02:57]}  Ba6 {[%clk 0:02:51]} 9. Bxa6 {[%clk 0:02:47]}  Nxa6 {[%clk 0:02:51]} 10. Qd3 {[%clk 0:02:42]}  Qc8 {[%clk 0:02:46]} 11. Nf4 {[%clk 0:02:42]}  c6 {[%clk 0:02:42]} 12. a3 {[%clk 0:02:35]}  Bxc3 {[%clk 0:02:33]} 13. bxc3 {[%clk 0:02:36]}  Nc7 {[%clk 0:02:27]} 14. c4 {[%clk 0:02:19]}  Ne6 {[%clk 0:02:26]} 15. Ne2 {[%clk 0:02:18]}  Qa6 {[%clk 0:02:16]} 16. a4 {[%clk 0:02:14]}  Qxc4 {[%clk 0:02:03]} 17. Qxc4 {[%clk 0:02:14]}  dxc4 {[%clk 0:02:03]} 18. Ba3 {[%clk 0:02:15]}  Rfc8 {[%clk 0:01:52]} 19. Rfc1 {[%clk 0:02:06]}  b5 {[%clk 0:01:52]} 20. Rab1 {[%clk 0:02:01]}  a6 {[%clk 0:01:50]} 21. f3 {[%clk 0:01:57]}  Nd5 {[%clk 0:01:28]} 22. Kf2 {[%clk 0:01:57]}  Rab8 {[%clk 0:01:25]} 23. Bd6 {[%clk 0:01:52]}  Ra8 {[%clk 0:01:22]} 24. e4 {[%clk 0:01:51]}  Nb6 {[%clk 0:01:20]} 25. a5 {[%clk 0:01:51]}  Rd8 {[%clk 0:01:08]} 26. Bb4 {[%clk 0:01:30]}  Na4 {[%clk 0:01:05]} 27. Rd1 {[%clk 0:01:31]}  c5 {[%clk 0:01:02]} 28. dxc5 {[%clk 0:01:31]}  Naxc5 {[%clk 0:01:03]} 29. Ke3 {[%clk 0:01:26]}  Nd3 {[%clk 0:01:00]} 30. Ba3 {[%clk 0:01:15]}  Rab8 {[%clk 0:00:59]} 31. Nc3 {[%clk 0:00:46]}  b4 {[%clk 0:00:51]} 32. Bxb4 {[%clk 0:00:47]}  Nxb4 {[%clk 0:00:42]} 33. Rxd8+ {[%clk 0:00:48]}  Nxd8 {[%clk 0:00:42]} 34. Nd5 {[%clk 0:00:45]}  Nc2+ {[%clk 0:00:42]} 0-1


[Site "https://www.chess.com"]

[Event "Titled Tuesday Blitz February 15 Early 2022"]
[White "Nesterov, Arseniy"]
[Black "FGHSMN"]
[WhiteFideId "24198455"]
[WhiteElo "2489"]
[BlackElo "2714"]
[Result "0-1"]
[Round "10"]
[TimeControl "180+1"]
[Date "2022.02.15"]
[WhiteClock "0:00:03"]
[BlackClock "0:00:19"]

1. d4 {[%clk 0:03:00]}  d5 {[%clk 0:02:58]} 2. c4 {[%clk 0:03:00]}  e6 {[%clk 0:02:58]} 3. Nc3 {[%clk 0:03:00]}  a6 {[%clk 0:02:59]} 4. cxd5 {[%clk 0:02:59]}  exd5 {[%clk 0:03:00]} 5. Nf3 {[%clk 0:02:59]}  c6 {[%clk 0:03:00]} 6. Bf4 {[%clk 0:02:56]}  Bd6 {[%clk 0:03:00]} 7. Bg3 {[%clk 0:02:57]}  Ne7 {[%clk 0:02:58]} 8. e3 {[%clk 0:02:57]}  Nf5 {[%clk 0:02:58]} 9. Bd3 {[%clk 0:02:55]}  Nxg3 {[%clk 0:02:57]} 10. hxg3 {[%clk 0:02:56]}  Nd7 {[%clk 0:02:58]} 11. Qc2 {[%clk 0:02:54]}  Nf6 {[%clk 0:02:58]} 12. O-O-O {[%clk 0:02:43]}  Be6 {[%clk 0:02:57]} 13. Kb1 {[%clk 0:02:42]}  Qe7 {[%clk 0:02:56]} 14. Rc1 {[%clk 0:02:36]}  O-O-O {[%clk 0:02:54]} 15. Na4 {[%clk 0:02:32]}  Kb8 {[%clk 0:02:53]} 16. Qb3 {[%clk 0:02:18]}  Ka8 {[%clk 0:02:33]} 17. Nd2 {[%clk 0:01:49]}  Nd7 {[%clk 0:02:11]} 18. Qc3 {[%clk 0:01:29]}  Rc8 {[%clk 0:01:44]} 19. Nb3 {[%clk 0:01:26]}  Bb4 {[%clk 0:01:38]} 20. Qc2 {[%clk 0:01:24]}  h5 {[%clk 0:01:22]} 21. a3 {[%clk 0:01:15]}  Bd6 {[%clk 0:01:20]} 22. Qc3 {[%clk 0:00:56]}  h4 {[%clk 0:01:16]} 23. gxh4 {[%clk 0:00:30]}  Rxh4 {[%clk 0:01:17]} 24. g3 {[%clk 0:00:21]}  Rxh1 {[%clk 0:01:11]} 25. Rxh1 {[%clk 0:00:22]}  Qf6 {[%clk 0:01:07]} 26. f4 {[%clk 0:00:19]}  Bf5 {[%clk 0:01:05]} 27. Ka2 {[%clk 0:00:18]}  Bxd3 {[%clk 0:01:01]} 28. Qxd3 {[%clk 0:00:19]}  Re8 {[%clk 0:01:01]} 29. Rc1 {[%clk 0:00:13]}  Bf8 {[%clk 0:00:37]} 30. Qc3 {[%clk 0:00:06]}  Qe6 {[%clk 0:00:34]} 31. Qa5 {[%clk 0:00:03]}  Rc8 {[%clk 0:00:19]} 0-1


[Site "https://www.chess.com"]

[Event "Titled Tuesday Blitz February 15 Early 2022"]
[White "Nguyen Hong Nhung"]
[Black "Harshavardhan G B"]
[WhiteFideId "12412201"]
[BlackFideId "25059009"]
[WhiteElo "1661"]
[BlackElo "1831"]
[Result "0-1"]
[Round "10"]
[TimeControl "180+1"]
[Date "2022.02.15"]
[WhiteClock "0:00:03"]
[BlackClock "0:00:16"]

1. e4 {[%clk 0:03:00]}  e5 {[%clk 0:02:53]} 2. Nf3 {[%clk 0:03:00]}  Nc6 {[%clk 0:02:54]} 3. d4 {[%clk 0:03:01]}  exd4 {[%clk 0:02:47]} 4. Nxd4 {[%clk 0:03:01]}  Bc5 {[%clk 0:02:47]} 5. Be3 {[%clk 0:03:01]}  Qf6 {[%clk 0:02:46]} 6. c3 {[%clk 0:03:01]}  Nge7 {[%clk 0:02:43]} 7. Bc4 {[%clk 0:03:00]}  d6 {[%clk 0:02:41]} 8. O-O {[%clk 0:02:59]}  Bb6 {[%clk 0:02:41]} 9. Na3 {[%clk 0:02:58]}  h5 {[%clk 0:02:32]} 10. Nac2 {[%clk 0:02:55]}  Ne5 {[%clk 0:02:23]} 11. Be2 {[%clk 0:02:36]}  Ng4 {[%clk 0:02:21]} 12. Nf5 {[%clk 0:02:15]}  Nxf5 {[%clk 0:02:13]} 13. Bxb6 {[%clk 0:02:15]}  axb6 {[%clk 0:02:12]} 14. exf5 {[%clk 0:02:15]}  Bxf5 {[%clk 0:02:09]} 15. Nd4 {[%clk 0:02:13]}  O-O {[%clk 0:02:06]} 16. Nxf5 {[%clk 0:02:11]}  Qxf5 {[%clk 0:02:07]} 17. h3 {[%clk 0:02:09]}  Nf6 {[%clk 0:02:02]} 18. Bf3 {[%clk 0:02:09]}  d5 {[%clk 0:01:58]} 19. Re1 {[%clk 0:02:08]}  Rfe8 {[%clk 0:01:52]} 20. Qb3 {[%clk 0:02:02]}  g6 {[%clk 0:01:46]} 21. Rad1 {[%clk 0:01:59]}  h4 {[%clk 0:01:35]} 22. a3 {[%clk 0:01:47]}  Re5 {[%clk 0:01:30]} 23. Qb4 {[%clk 0:01:30]}  g5 {[%clk 0:01:27]} 24. c4 {[%clk 0:01:18]}  d4 {[%clk 0:01:16]} 25. Bxb7 {[%clk 0:00:57]}  Rd8 {[%clk 0:01:14]} 26. Rxe5 {[%clk 0:00:52]}  Qxe5 {[%clk 0:01:15]} 27. Re1 {[%clk 0:00:53]}  Qf5 {[%clk 0:01:13]} 28. Bf3 {[%clk 0:00:45]}  d3 {[%clk 0:01:12]} 29. Rd1 {[%clk 0:00:43]}  Rd4 {[%clk 0:00:53]} 30. Qe7 {[%clk 0:00:39]}  c5 {[%clk 0:00:46]} 31. Qc7 {[%clk 0:00:19]}  Qe6 {[%clk 0:00:38]} 32. Qb8+ {[%clk 0:00:16]}  Kg7 {[%clk 0:00:37]} 33. a4 {[%clk 0:00:15]}  d2 {[%clk 0:00:34]} 34. b3 {[%clk 0:00:15]}  Qe1+ {[%clk 0:00:34]} 35. Kh2 {[%clk 0:00:15]}  Qxf2 {[%clk 0:00:33]} 36. Qxb6 {[%clk 0:00:14]}  Rd3 {[%clk 0:00:31]} 37. Qc6 {[%clk 0:00:13]}  Qg3+ {[%clk 0:00:27]} 38. Kh1 {[%clk 0:00:11]}  Re3 {[%clk 0:00:25]} 39. Rg1 {[%clk 0:00:06]}  Re1 {[%clk 0:00:24]} 40. Qxc5 {[%clk 0:00:06]}  Ne4 {[%clk 0:00:17]} 41. Bxe4 {[%clk 0:00:06]}  Rxe4 {[%clk 0:00:16]} 42. Qd5 {[%clk 0:00:06]}  Qe3 {[%clk 0:00:15]} 43. a5 {[%clk 0:00:05]}  Rd4 {[%clk 0:00:15]} 44. Qf5 {[%clk 0:00:03]}  d1=Q {[%clk 0:00:14]} 45. Rxd1 {[%clk 0:00:02]}  Rxd1+ {[%clk 0:00:15]} 46. Kh2 {[%clk 0:00:03]}  Qg1# {[%clk 0:00:16]} 0-1


[Site "https://www.chess.com"]

[Event "Titled Tuesday Blitz February 15 Early 2022"]
[White "Nguyen, Ngoc Truong Son"]
[Black "Kretov, Evgenij"]
[WhiteFideId "12401110"]
[BlackFideId "4167821"]
[WhiteElo "2596"]
[BlackElo "2303"]
[Result "1-0"]
[Round "10"]
[TimeControl "180+1"]
[Date "2022.02.15"]
[WhiteClock "0:01:30"]
[BlackClock "0:01:07"]

1. e4 {[%clk 0:03:00]}  c5 {[%clk 0:03:00]} 2. Nf3 {[%clk 0:03:00]}  Nc6 {[%clk 0:03:00]} 3. Bb5 {[%clk 0:02:57]}  g6 {[%clk 0:03:00]} 4. Bxc6 {[%clk 0:02:54]}  bxc6 {[%clk 0:03:00]} 5. d4 {[%clk 0:02:53]}  cxd4 {[%clk 0:03:00]} 6. Qxd4 {[%clk 0:02:51]}  f6 {[%clk 0:03:00]} 7. c4 {[%clk 0:02:49]}  Nh6 {[%clk 0:02:58]} 8. Bxh6 {[%clk 0:02:47]}  Bxh6 {[%clk 0:02:57]} 9. Nc3 {[%clk 0:02:44]}  O-O {[%clk 0:02:53]} 10. h4 {[%clk 0:02:37]}  Bf4 {[%clk 0:02:45]} 11. h5 {[%clk 0:02:34]}  d6 {[%clk 0:02:41]} 12. hxg6 {[%clk 0:02:33]}  hxg6 {[%clk 0:02:41]} 13. g3 {[%clk 0:02:31]}  Be5 {[%clk 0:02:34]} 14. Qd2 {[%clk 0:02:28]}  Qa5 {[%clk 0:02:31]} 15. Nxe5 {[%clk 0:02:23]}  Qxe5 {[%clk 0:02:28]} 16. O-O-O {[%clk 0:02:21]}  Be6 {[%clk 0:02:20]} 17. f4 {[%clk 0:01:57]}  Qc5 {[%clk 0:02:16]} 18. f5 {[%clk 0:01:53]}  Bxf5 {[%clk 0:01:35]} 19. exf5 {[%clk 0:01:51]}  Qxf5 {[%clk 0:01:36]} 20. Rde1 {[%clk 0:01:45]}  e5 {[%clk 0:01:11]} 21. Qxd6 {[%clk 0:01:36]}  Rad8 {[%clk 0:01:10]} 22. Qe7 {[%clk 0:01:31]}  Rd7 {[%clk 0:01:07]} 23. Rh8+ {[%clk 0:01:30]} 1-0


[Site "https://www.chess.com"]

[Event "Titled Tuesday Blitz February 15 Early 2022"]
[White "Noroozi, Omid"]
[Black "Shvedova, Alexandra"]
[WhiteFideId "12501190"]
[BlackFideId "54154782"]
[WhiteElo "2236"]
[BlackElo "1920"]
[Result "1-0"]
[Round "10"]
[TimeControl "180+1"]
[Date "2022.02.15"]
[WhiteClock "0:01:32"]
[BlackClock "0:00:03"]

1. e4 {[%clk 0:02:56]}  c5 {[%clk 0:03:00]} 2. Nf3 {[%clk 0:02:56]}  d6 {[%clk 0:03:00]} 3. Bb5+ {[%clk 0:02:56]}  Nd7 {[%clk 0:02:59]} 4. c3 {[%clk 0:02:56]}  Nf6 {[%clk 0:02:56]} 5. Qe2 {[%clk 0:02:56]}  a6 {[%clk 0:02:56]} 6. Ba4 {[%clk 0:02:56]}  b5 {[%clk 0:02:56]} 7. Bc2 {[%clk 0:02:57]}  c4 {[%clk 0:02:55]} 8. O-O {[%clk 0:02:58]}  Bb7 {[%clk 0:02:54]} 9. b3 {[%clk 0:02:59]}  Rc8 {[%clk 0:02:41]} 10. Na3 {[%clk 0:02:57]}  cxb3 {[%clk 0:02:39]} 11. axb3 {[%clk 0:02:58]}  e5 {[%clk 0:02:36]} 12. Bb2 {[%clk 0:02:56]}  Nc5 {[%clk 0:02:31]} 13. d4 {[%clk 0:02:55]}  Ncxe4 {[%clk 0:02:27]} 14. dxe5 {[%clk 0:02:54]}  dxe5 {[%clk 0:02:27]} 15. Nxe5 {[%clk 0:02:55]}  Be7 {[%clk 0:02:18]} 16. Rad1 {[%clk 0:02:55]}  Qc7 {[%clk 0:02:13]} 17. Bxe4 {[%clk 0:02:54]}  Nxe4 {[%clk 0:01:58]} 18. Rd7 {[%clk 0:02:54]}  Qxe5 {[%clk 0:01:58]} 19. Rxb7 {[%clk 0:02:55]}  Bd6 {[%clk 0:01:41]} 20. g3 {[%clk 0:02:41]}  O-O {[%clk 0:01:39]} 21. c4 {[%clk 0:02:40]}  Qf5 {[%clk 0:01:27]} 22. cxb5 {[%clk 0:02:39]}  Ng5 {[%clk 0:01:18]} 23. f4 {[%clk 0:02:34]}  Nh3+ {[%clk 0:01:06]} 24. Kg2 {[%clk 0:02:34]}  Bxa3 {[%clk 0:01:00]} 25. g4 {[%clk 0:02:08]}  Qd5+ {[%clk 0:00:56]} 26. Kxh3 {[%clk 0:02:08]}  Bxb2 {[%clk 0:00:53]} 27. bxa6 {[%clk 0:02:06]}  Bf6 {[%clk 0:00:42]} 28. g5 {[%clk 0:01:58]}  Rc3+ {[%clk 0:00:41]} 29. Kg4 {[%clk 0:01:58]}  h5+ {[%clk 0:00:34]} 30. Kh4 {[%clk 0:01:59]}  Bd8 {[%clk 0:00:27]} 31. Rg1 {[%clk 0:01:35]}  Qf5 {[%clk 0:00:24]} 32. Rg3 {[%clk 0:01:34]}  Rxg3 {[%clk 0:00:21]} 33. hxg3 {[%clk 0:01:35]}  Qd5 {[%clk 0:00:17]} 34. Kxh5 {[%clk 0:01:33]}  g6+ {[%clk 0:00:16]} 35. Kg4 {[%clk 0:01:32]}  Kg7 {[%clk 0:00:09]} 36. Qe5+ {[%clk 0:01:31]}  Qxe5 {[%clk 0:00:08]} 37. fxe5 {[%clk 0:01:32]}  Bxg5 {[%clk 0:00:07]} 38. Kxg5 {[%clk 0:01:32]}  Ra8 {[%clk 0:00:07]} 39. a7 {[%clk 0:01:32]}  Kf8 {[%clk 0:00:07]} 40. Kf6 {[%clk 0:01:32]}  Kg8 {[%clk 0:00:07]} 41. Rxf7 {[%clk 0:01:32]}  g5 {[%clk 0:00:05]} 42. e6 {[%clk 0:01:31]}  g4 {[%clk 0:00:05]} 43. Rg7+ {[%clk 0:01:32]}  Kh8 {[%clk 0:00:05]} 44. e7 {[%clk 0:01:31]}  Re8 {[%clk 0:00:03]} 45. Rxg4 {[%clk 0:01:30]}  Kh7 {[%clk 0:00:03]} 46. Kf7 {[%clk 0:01:30]}  Kh6 {[%clk 0:00:02]} 47. Kxe8 {[%clk 0:01:30]}  Kh5 {[%clk 0:00:03]} 48. Rf4 {[%clk 0:01:31]}  Kg5 {[%clk 0:00:03]} 49. a8=Q {[%clk 0:01:31]}  Kg6 {[%clk 0:00:04]} 50. Kf8 {[%clk 0:01:30]}  Kg5 {[%clk 0:00:04]} 51. e8=Q {[%clk 0:01:31]}  Kh6 {[%clk 0:00:04]} 52. b4 {[%clk 0:01:31]}  Kg5 {[%clk 0:00:03]} 53. b5 {[%clk 0:01:32]} 1-0


[Site "https://www.chess.com"]